fUST/lending_fUST_20251114
["ID","MTS","AMOUNT","RATE_DAILY","PERIOD"]
[393939177,1763116109890,6957.00636668,0.00018,2]
[393939179,1763116110773,21208.16000976,0.00032,120]
[393939334,1763116220172,-167.98166249,0.000198,2]
[393939340,1763116222372,-185.85806434,0.000198,2]
[393939353,1763116227341,-154.49965307,0.000198,2]
[393939355,1763116228888,-521.80173988,0.000198,2]
[393939357,1763116230440,-300.0,0.000198,2]
[393939375,1763116232270,-476.52,0.000198,2]
[393939376,1763116232327,-2193.95759244,0.000198,2]
[393939378,1763116232383,-999.38128778,0.000198,2]
[393939379,1763116232392,-964.0,0.000198,2]
[393939380,1763116232402,-197.26575374,0.0001985,2]
[393939381,1763116232412,-1317.47562417,0.000199,2]
[393939382,1763116232422,-300.0,0.00019999,2]
[393939383,1763116232431,-300.0,0.00019999,2]
[393939384,1763116232440,-300.0,0.00019999,2]
[393939385,1763116232452,-300.0,0.00019999,2]
[393939386,1763116232462,-1200.0,0.00019999,2]
[393939387,1763116232471,-3188.90861678,0.0002,2]
[393939452,1763116240659,-3e-08,0.0002,2]
[393939657,1763116247963,-3039.8825294,0.0002,2]
[393939658,1763116247978,-369.23014333,0.0002,2]
[393939659,1763116247988,-23000.0,0.0002,2]
[393939660,1763116247998,-201.35223155,0.0002,2]
[393939661,1763116248007,-4085.92351923,0.0002,2]
[393939662,1763116248017,-1000.0,0.00020015,2]
[393939663,1763116248026,-1380.14677481,0.0002061,2]
[393939664,1763116248035,-309.96026711,0.00020813,2]
[393939665,1763116248044,-557.92848079,0.00020813,2]
[393939666,1763116248054,-254.64062272,0.000209,2]
[393939667,1763116248064,-21512.75875087,0.000209,2]
[393939668,1763116248075,-1002.07,0.0002094,10]
[393939669,1763116248085,-500.0,0.0002095,2]
[393939670,1763116248095,-1031.29806114,0.0002095,2]
[393939671,1763116248104,-500.0,0.0002095,2]
[393939672,1763116248114,-500.0,0.0002095,2]
[393939673,1763116248124,-500.0,0.0002095,2]
[393939674,1763116248134,-500.0,0.0002095,2]
[393939675,1763116248143,-500.0,0.0002095,2]
[393939676,1763116248152,-500.0,0.0002095,2]
[393939677,1763116248166,-500.0,0.0002095,2]
[393939678,1763116248175,-500.0,0.0002095,2]
[393939679,1763116248185,-500.0,0.0002095,2]
[393939680,1763116248194,-500.0,0.0002095,2]
[393939681,1763116248203,-500.0,0.0002095,2]
[393939682,1763116248212,-500.0,0.0002095,2]
[393939683,1763116248221,-500.0,0.0002095,2]
[393939684,1763116248231,-500.0,0.0002095,2]
[393939685,1763116248239,-500.0,0.0002095,2]
[393939686,1763116248248,-500.0,0.0002095,2]
[393939687,1763116248259,-500.0,0.0002095,2]
[393939688,1763116248268,-500.0,0.0002095,2]
[393939689,1763116248277,-500.0,0.0002095,2]
[393939690,1763116248287,-500.0,0.0002095,2]
[393939691,1763116248296,-500.0,0.0002095,2]
[393939692,1763116248306,-500.0,0.0002095,2]
[393939693,1763116248315,-500.0,0.0002095,2]
[393939694,1763116248325,-500.0,0.0002095,2]
[393939695,1763116248420,-500.0,0.0002095,2]
[393939696,1763116248433,-500.0,0.0002095,2]
[393939697,1763116248443,-500.0,0.0002095,2]
[393939698,1763116248452,-500.0,0.0002095,2]
[393939699,1763116248462,-500.0,0.0002095,2]
[393939700,1763116248471,-500.0,0.0002095,2]
[393939701,1763116248480,-500.0,0.0002095,2]
[393939702,1763116248489,-500.0,0.0002095,2]
[393939703,1763116248498,-546.52849137,0.0002095,2]
[393939704,1763116248507,-500.0,0.0002095,2]
[393939705,1763116248517,-500.0,0.0002095,2]
[393939706,1763116248527,-500.0,0.0002095,2]
[393939707,1763116248536,-500.0,0.0002095,2]
[393939708,1763116248546,-500.0,0.0002095,2]
[393939709,1763116248556,-500.0,0.0002095,2]
[393939710,1763116248566,-500.0,0.0002095,2]
[393939711,1763116248575,-500.0,0.0002095,2]
[393939712,1763116248585,-500.0,0.0002095,2]
[393939713,1763116248593,-500.0,0.0002095,2]
[393939714,1763116248604,-500.0,0.0002095,2]
[393939715,1763116248613,-500.0,0.0002095,2]
[393939716,1763116248622,-500.0,0.0002095,2]
[393939717,1763116248631,-500.0,0.0002095,2]
[393939718,1763116248640,-500.0,0.0002095,2]
[393939719,1763116248649,-500.0,0.0002095,2]
[393939720,1763116248659,-500.0,0.0002095,2]
[393939721,1763116248668,-500.0,0.0002095,2]
[393939722,1763116248676,-500.0,0.0002095,2]
[393939723,1763116248686,-500.0,0.0002095,2]
[393939724,1763116248695,-500.0,0.0002095,2]
[393939725,1763116248704,-500.0,0.0002095,2]
[393939726,1763116248714,-500.0,0.0002095,2]
[393939727,1763116248723,-500.0,0.0002095,2]
[393939728,1763116248732,-500.0,0.0002095,2]
[393939729,1763116248740,-500.0,0.0002095,2]
[393939730,1763116248749,-500.0,0.0002095,2]
[393939731,1763116248758,-500.0,0.0002095,2]
[393939732,1763116248766,-500.0,0.0002095,2]
[393939733,1763116248775,-500.0,0.0002095,2]
[393939734,1763116248784,-500.0,0.0002095,2]
[393939735,1763116248792,-500.0,0.0002095,2]
[393939736,1763116248801,-500.0,0.0002095,2]
[393939737,1763116248810,-500.0,0.0002095,2]
[393939738,1763116248818,-344.60051724,0.0002095,2]
[393939739,1763116248827,-500.0,0.0002095,2]
[393939740,1763116248835,-500.0,0.0002095,2]
[393939741,1763116248844,-500.0,0.0002095,2]
[393939742,1763116248853,-500.0,0.0002095,2]
[393939743,1763116248862,-500.0,0.0002095,2]
[393939744,1763116248871,-282.37511857,0.0002095,2]
[393939745,1763116248880,-500.0,0.0002095,2]
[393939746,1763116248889,-500.0,0.0002095,2]
[393939747,1763116248898,-500.0,0.0002095,2]
[393939748,1763116248908,-500.0,0.0002095,2]
[393939749,1763116248917,-500.0,0.0002095,2]
[393939750,1763116248926,-500.0,0.0002095,2]
[393939751,1763116248936,-500.0,0.0002095,2]
[393939752,1763116248945,-500.0,0.0002095,2]
[393939753,1763116248954,-500.0,0.0002095,2]
[393939754,1763116248964,-500.0,0.0002095,2]
[393939755,1763116248973,-500.0,0.0002095,2]
[393939756,1763116248983,-500.0,0.0002095,2]
[393939757,1763116248992,-500.0,0.0002095,2]
[393939758,1763116249001,-500.0,0.0002095,2]
[393939759,1763116249011,-500.0,0.0002095,2]
[393939760,1763116249020,-500.0,0.0002095,2]
[393939761,1763116249030,-500.0,0.0002095,2]
[393939762,1763116249039,-500.0,0.0002095,2]
[393939763,1763116249049,-500.0,0.0002095,2]
[393939764,1763116249058,-500.0,0.0002095,2]
[393939765,1763116249067,-455.30395741,0.0002095,2]
[393939766,1763116249076,-500.0,0.0002095,2]
[393939767,1763116249088,-500.0,0.0002095,2]
[393939768,1763116249097,-500.0,0.0002095,2]
[393939769,1763116249106,-500.0,0.0002095,2]
[393939770,1763116249115,-500.0,0.0002095,2]
[393939771,1763116249125,-500.0,0.0002095,2]
[393939772,1763116249134,-500.0,0.0002095,2]
[393939773,1763116249143,-500.0,0.0002095,2]
[393939774,1763116249153,-500.0,0.0002095,2]
[393939775,1763116249162,-500.0,0.0002095,2]
[393939776,1763116249171,-500.0,0.0002095,2]
[393939777,1763116249179,-350.0,0.0002095,2]
[393939778,1763116249188,-500.0,0.0002095,2]
[393939779,1763116249197,-500.0,0.0002095,2]
[393939780,1763116249206,-500.0,0.0002095,2]
[393939781,1763116249216,-1200.0,0.0002095,2]
[393939782,1763116249225,-343.918869,0.00020953,7]
[393939783,1763116249235,-343.918869,0.00020953,7]
[393939784,1763116249244,-343.918869,0.00020953,7]
[393939785,1763116249253,-343.918869,0.00020953,7]
[393939786,1763116249262,-343.918869,0.00020954,7]
[393939787,1763116249271,-343.918869,0.00020954,7]
[393939788,1763116249280,-343.918869,0.00020954,7]
[393939789,1763116249289,-343.918869,0.00020954,7]
[393939790,1763116249298,-500.0,0.00020955,7]
[393939791,1763116249307,-491.85907738,0.00020973,2]
[393939792,1763116249316,-500.0,0.00020973,2]
[393939793,1763116249325,-500.0,0.00020973,2]
[393939794,1763116249334,-500.0,0.00020973,2]
[393939795,1763116249344,-500.0,0.00020973,2]
[393939796,1763116249353,-500.0,0.00020973,2]
[393939797,1763116249362,-500.0,0.00020973,2]
[393939798,1763116249371,-500.0,0.00020973,2]
[393939799,1763116249381,-500.0,0.00020973,2]
[393939800,1763116249392,-500.0,0.00020973,2]
[393939801,1763116249402,-500.0,0.00020973,2]
[393939802,1763116249412,-500.0,0.00020982,7]
[393939803,1763116249421,-151.0,0.00020988,2]
[393939804,1763116249430,-151.0,0.00020988,2]
[393939805,1763116249439,-151.0,0.00020988,2]
[393939806,1763116249447,-500.0,0.00020988,2]
[393939807,1763116249456,-153.07043674,0.00020988,2]
[393939808,1763116249466,-198.0,0.00020988,2]
[393939809,1763116249475,-343.918869,0.0002099,7]
[393939810,1763116249485,-343.918869,0.0002099,7]
[393939811,1763116249494,-343.918869,0.0002099,7]
[393939812,1763116249503,-343.918869,0.0002099,7]
[393939813,1763116249514,-244.74,0.0002099,3]
[393939814,1763116249524,-193.04631888,0.00020995,2]
[393939815,1763116249534,-153.40411126,0.00020995,2]
[393939816,1763116249543,-151.0,0.00020995,2]
[393939817,1763116249555,-205.96129709,0.00021,2]
[393939818,1763116249564,-49249.0,0.00021,2]
[393939819,1763116249573,-500.0,0.0002101,7]
[393939820,1763116249582,-413.45339151,0.00021015,2]
[393939821,1763116249591,-151.0,0.00021015,2]
[393939822,1763116249600,-222.81805143,0.00021015,2]
[393939823,1763116249609,-289.48371257,0.00021015,2]
[393939824,1763116249618,-500.0,0.00021015,2]
[393939825,1763116249628,-151.0,0.00021022,2]
[393939826,1763116249638,-500.0,0.00021037,7]
[393939827,1763116249647,-179.60642039,0.00021043,2]
[393939828,1763116249657,-500.0,0.00021043,2]
[393939829,1763116249668,-151.0,0.0002105,2]
[393939830,1763116249677,-500.0,0.00021065,7]
[393939831,1763116249688,-500.0,0.0002107,2]
[393939832,1763116249698,-227.85750192,0.00021077,2]
[393939833,1763116249707,-314.90339545,0.00021092,7]
[393939834,1763116249718,-500.0,0.00021098,2]
[393939835,1763116249727,-365.10438486,0.000211,2]
[393939836,1763116249736,-3474.11726113,0.00021114,2]
[393939837,1763116249745,-500.0,0.00021125,2]
[393939838,1763116249755,-293.69,0.00021142,3]
[393939839,1763116249764,-297.20839093,0.00021152,2]
[393939840,1763116249776,-500.0,0.00021224,2]
[393939841,1763116249787,-587.39,0.00021336,3]
[393939842,1763116249798,-19276.3617251,0.00021346,2]
[393939843,1763116249807,-500.0,0.00021346,2]
[393939844,1763116249817,-500.0,0.00021346,2]
[393939845,1763116249826,-500.0,0.00021346,2]
[393939846,1763116249835,-500.0,0.00021346,2]
[393939847,1763116249846,-500.0,0.00021346,2]
[393939848,1763116249856,-500.0,0.00021346,2]
[393939849,1763116249865,-500.0,0.00021346,2]
[393939850,1763116249874,-500.0,0.00021346,2]
[393939851,1763116249883,-500.0,0.00021346,2]
[393939852,1763116249893,-500.0,0.00021346,2]
[393939853,1763116249902,-500.0,0.00021346,2]
[393939854,1763116249911,-500.0,0.00021346,2]
[393939855,1763116249921,-293.51079003,0.00021346,2]
[393939856,1763116249931,-500.0,0.00021373,2]
[393939857,1763116249940,-500.0,0.00021373,2]
[393939858,1763116249950,-500.0,0.00021373,2]
[393939859,1763116249961,-500.0,0.00021373,2]
[393939860,1763116249970,-500.0,0.00021373,2]
[393939861,1763116249982,-500.0,0.00021373,2]
[393939862,1763116249992,-500.0,0.00021373,2]
[393939863,1763116250001,-343.918869,0.00021373,7]
[393939864,1763116250010,-343.918869,0.00021373,7]
[393939865,1763116250020,-343.918869,0.00021373,7]
[393939866,1763116250030,-343.918869,0.00021373,7]
[393939867,1763116250039,-160.0,0.0002148,2]
[393939868,1763116250049,-500.0,0.00021498,2]
[393939869,1763116250060,-1000.0,0.00021521,2]
[393939870,1763116250069,-1000.0,0.00021521,2]
[393939871,1763116250081,-1000.0,0.00021521,2]
[393939872,1763116250090,-510.08784499,0.00021521,2]
[393939873,1763116250100,-1000.0,0.00021521,2]
[393939874,1763116250109,-1000.0,0.00021521,2]
[393939875,1763116250119,-880.12245353,0.00021521,2]
[393939876,1763116250129,-1000.0,0.00021521,2]
[393939877,1763116250138,-1000.0,0.00021521,2]
[393939878,1763116250147,-633.53411185,0.00021521,2]
[393939879,1763116250158,-1000.0,0.00021521,2]
[393939880,1763116250167,-1000.0,0.00021521,2]
[393939881,1763116250177,-1000.0,0.00021521,2]
[393939882,1763116250187,-1000.0,0.00021521,2]
[393939883,1763116250196,-1000.0,0.00021521,2]
[393939884,1763116250209,-500.0,0.00021521,2]
[393939885,1763116250218,-1000.0,0.00021521,2]
[393939886,1763116250228,-1000.0,0.00021521,2]
[393939887,1763116250237,-695.62038484,0.00021521,2]
[393939888,1763116250246,-999.0,0.00021688,2]
[393939889,1763116250255,-420.0,0.00021777,2]
[393939890,1763116250265,-398.0,0.00021777,2]
[393939891,1763116250274,-15881.05337048,0.00021821,2]
[393939892,1763116250284,-232.77358941,0.0002185,2]
[393939893,1763116250294,-1680.0,0.00021881,2]
[393939894,1763116250303,-301.595202,0.00021918,2]
[393939895,1763116250314,-301.595202,0.00021918,2]
[393939896,1763116250324,-301.595202,0.00021918,2]
[393939897,1763116250334,-301.595202,0.00021918,2]
[393939898,1763116250345,-301.595202,0.00021918,2]
[393939899,1763116250356,-301.595202,0.00021918,2]
[393939900,1763116250365,-301.595202,0.00021918,2]
[393939901,1763116250375,-301.595202,0.00021918,2]
[393939902,1763116250385,-301.595202,0.00021918,2]
[393939903,1763116250394,-301.595202,0.00021918,2]
[393939904,1763116250403,-301.595202,0.00021918,2]
[393939905,1763116250413,-301.595202,0.00021918,2]
[393939906,1763116250422,-301.595202,0.00021918,2]
[393939907,1763116250431,-301.595202,0.00021918,2]
[393939908,1763116250441,-301.595202,0.00021918,2]
[393939909,1763116250450,-301.595202,0.00021918,2]
[393939910,1763116250459,-301.595202,0.00021918,2]
[393939911,1763116250468,-301.595202,0.00021918,2]
[393939912,1763116250477,-301.595202,0.00021918,2]
[393939913,1763116250486,-301.5952,0.00021918,2]
[393939914,1763116250496,-211.33913987,0.00021918,2]
[393939915,1763116250505,-501.73830465,0.00021921,2]
[393939916,1763116250515,-1000.0,0.00021921,2]
[393939917,1763116250525,-1000.0,0.00021921,2]
[393939918,1763116250535,-504.23985669,0.00021921,2]
[393939919,1763116250547,-1000.0,0.00021921,2]
[393939920,1763116250557,-1000.0,0.00021921,2]
[393939921,1763116250568,-1000.0,0.00021921,2]
[393939922,1763116250579,-310.0,0.00021972,2]
[393939923,1763116250589,-500.0,0.00021973,2]
[393939924,1763116250599,-500.0,0.00021973,2]
[393939925,1763116250607,-500.0,0.00021973,2]
[393939926,1763116250617,-500.0,0.00021973,2]
[393939927,1763116250626,-500.0,0.00021973,2]
[393939928,1763116250635,-502.43931167,0.00021973,2]
[393939929,1763116250644,-500.0,0.00021973,2]
[393939930,1763116250654,-167.8613438,0.00021973,2]
[393939931,1763116250665,-500.0,0.00021973,2]
[393939932,1763116250674,-500.0,0.00021973,2]
[393939933,1763116250683,-500.0,0.00021973,2]
[393939934,1763116250693,-500.0,0.00021973,2]
[393939935,1763116250704,-500.0,0.00021973,2]
[393939936,1763116250714,-500.0,0.00021973,2]
[393939937,1763116250724,-531.31005391,0.00021973,2]
[393939938,1763116250736,-500.43125913,0.00021973,2]
[393939939,1763116250750,-500.0,0.00021973,2]
[393939940,1763116250759,-500.0,0.00021973,2]
[393939941,1763116250768,-500.0,0.00021973,2]
[393939942,1763116250778,-500.0,0.00021973,2]
[393939943,1763116250788,-339.9148566,0.00021973,2]
[393939944,1763116250798,-500.0,0.00021973,2]
[393939945,1763116250807,-500.0,0.00021973,2]
[393939946,1763116250817,-500.0,0.00021973,2]
[393939947,1763116250827,-500.0,0.00021973,2]
[393939948,1763116250922,-500.0,0.00021973,2]
[393939949,1763116250932,-500.0,0.00021973,2]
[393939950,1763116250942,-500.0,0.00021973,2]
[393939951,1763116250951,-500.0,0.00021973,2]
[393939952,1763116250960,-500.0,0.00021973,2]
[393939953,1763116250971,-500.0,0.00021973,2]
[393939954,1763116250980,-500.0,0.00021973,2]
[393939955,1763116250990,-343.918869,0.00021973,7]
[393939956,1763116250999,-343.918869,0.00021973,7]
[393939957,1763116251008,-343.918869,0.00021973,7]
[393939958,1763116251017,-343.918866,0.00021973,7]
[393939959,1763116251027,-100000.0,0.0002199,2]
[393939960,1763116251036,-1377.0,0.00022,2]
[393939961,1763116251045,-260.0,0.00022028,2]
[393939962,1763116251056,-1011.04291677,0.00022068,2]
[393939963,1763116251065,-527.69603334,0.00022068,2]
[393939964,1763116251076,-1500.0,0.00022068,2]
[393939965,1763116251087,-1500.0,0.00022068,2]
[393939966,1763116251097,-507.42107441,0.00022068,2]
[393939967,1763116251106,-1321.66341125,0.00022068,2]
[393939968,1763116251115,-1500.0,0.00022068,2]
[393939969,1763116251126,-1500.0,0.00022068,2]
[393939970,1763116251135,-1500.0,0.00022068,2]
[393939971,1763116251144,-1500.0,0.00022068,2]
[393939972,1763116251155,-1500.0,0.00022068,2]
[393939973,1763116251165,-1500.0,0.00022068,2]
[393939974,1763116251175,-1500.0,0.00022068,2]
[393939975,1763116251186,-1500.0,0.00022068,2]
[393939976,1763116251196,-500.0,0.00022159,2]
[393939977,1763116251207,-383.0,0.00022206,2]
[393939978,1763116251216,-300.0,0.00022234,20]
[393939979,1763116251226,-300.0,0.00022234,20]
[393939980,1763116251235,-300.0,0.00022234,20]
[393939981,1763116251245,-300.0,0.00022234,20]
[393939982,1763116251255,-300.0,0.00022234,20]
[393939983,1763116251264,-300.0,0.00022234,20]
[393939984,1763116251274,-300.0,0.00022234,20]
[393939985,1763116251283,-300.0,0.00022234,20]
[393939986,1763116251293,-300.0,0.00022234,20]
[393939987,1763116251302,-300.0,0.00022234,20]
[393939988,1763116251312,-300.0,0.00022234,20]
[393939989,1763116251321,-300.0,0.00022234,20]
[393939990,1763116251331,-300.0,0.00022234,20]
[393939991,1763116251345,-300.0,0.00022234,20]
[393939992,1763116251353,-300.0,0.00022234,20]
[393939993,1763116251362,-305.45,0.000223,14]
[393939994,1763116251371,-151.0,0.000223,8]
[393939995,1763116251380,-164.710506,0.000223,2]
[393939996,1763116251389,-164.710506,0.000223,61]
[393939997,1763116251399,-489.48,0.0002236,3]
[393939998,1763116251408,-1500.0,0.00022468,2]
[393939999,1763116251417,-321.16518361,0.00022468,2]
[393940000,1763116251426,-1500.0,0.00022468,2]
[393940001,1763116251435,-1160.05628077,0.00022468,2]
[393940002,1763116251445,-1500.0,0.00022468,2]
[393940003,1763116251455,-501.56809252,0.00022521,2]
[393940004,1763116251465,-948.9906155,0.00022521,2]
[393940005,1763116251474,-1000.0,0.00022521,2]
[393940006,1763116251483,-506.27268725,0.00022521,2]
[393940007,1763116251493,-743.69542788,0.00022521,2]
[393940008,1763116251504,-1000.0,0.00022521,2]
[393940009,1763116251513,-1000.0,0.00022521,2]
[393940010,1763116251522,-1000.0,0.00022521,2]
[393940011,1763116251532,-1000.0,0.00022521,2]
[393940012,1763116251541,-1000.0,0.00022521,2]
[393940013,1763116251549,-1000.0,0.00022521,2]
[393940014,1763116251558,-1000.0,0.00022521,2]
[393940015,1763116251567,-1000.0,0.00022521,2]
[393940016,1763116251575,-1000.0,0.00022521,2]
[393940017,1763116251585,-1000.0,0.00022521,2]
[393940018,1763116251594,-1000.0,0.00022521,2]
[393940019,1763116251603,-1000.0,0.00022521,2]
[393940020,1763116251612,-1000.0,0.00022521,2]
[393940021,1763116251621,-1000.0,0.00022521,2]
[393940022,1763116251631,-805.41578557,0.00022521,2]
[393940023,1763116251642,-1000.0,0.00022521,2]
[393940024,1763116251651,-360.0,0.00022576,2]
[393940025,1763116251660,-505.5621592,0.00022616,2]
[393940026,1763116251672,-676.19231554,0.00022616,2]
[393940027,1763116251681,-2000.0,0.00022616,2]
[393940028,1763116251690,-2000.0,0.00022616,2]
[393940029,1763116251699,-2000.0,0.00022616,2]
[393940030,1763116251708,-2000.0,0.00022616,2]
[393940031,1763116251717,-2000.0,0.00022616,2]
[393940032,1763116251727,-2000.0,0.00022616,2]
[393940033,1763116251736,-2000.0,0.00022616,2]
[393940034,1763116251746,-369.34854681,0.00022616,2]
[393940035,1763116251758,-600.0,0.00022678,20]
[393940036,1763116251767,-1174.78,0.00022706,3]
[393940037,1763116251776,-1000.0,0.00022707,2]
[393940038,1763116251785,-1680.0,0.0002279,2]
[393940039,1763116251795,-161.7874328,0.00022857,2]
[393940040,1763116251804,-500.0,0.00022857,2]
[393940041,1763116251813,-500.93773478,0.00022973,2]
[393940042,1763116251822,-500.0,0.00022973,2]
[393940043,1763116251831,-500.0,0.00022973,2]
[393940044,1763116251840,-500.0,0.00022973,2]
[393940045,1763116251849,-500.0,0.00022973,2]
[393940046,1763116251860,-500.90606805,0.00022973,2]
[393940047,1763116251870,-500.0,0.00022973,2]
[393940048,1763116251879,-500.0,0.00022973,2]
[393940049,1763116251888,-500.0,0.00022973,2]
[393940050,1763116251898,-500.98849457,0.00022973,2]
[393940051,1763116251908,-500.0,0.00022973,2]
[393940052,1763116251918,-500.0,0.00022973,2]
[393940053,1763116251928,-500.0,0.00022973,2]
[393940054,1763116251939,-500.0,0.00022973,2]
[393940055,1763116251949,-400.38245665,0.0002299,7]
[393940056,1763116251958,-163.27,0.00023,7]
[393940057,1763116251968,-3966.34,0.00023,7]
[393940058,1763116251977,-220.19485152,0.00023016,2]
[393940059,1763116251986,-2000.0,0.00023016,2]
[393940060,1763116251996,-584.91683742,0.00023016,2]
[393940061,1763116252005,-7900.03330328,0.00023017,2]
[393940062,1763116252015,-1500.0,0.00023068,2]
[393940063,1763116252024,-1500.0,0.00023068,2]
[393940064,1763116252033,-1500.0,0.00023068,2]
[393940065,1763116252043,-240.63927608,0.00023068,2]
[393940066,1763116252052,-1500.0,0.00023068,2]
[393940067,1763116252062,-1500.0,0.00023068,2]
[393940068,1763116252072,-1500.0,0.00023068,2]
[393940069,1763116252085,-1511.9484604,0.00023068,2]
[393940070,1763116252095,-1500.0,0.00023068,2]
[393940071,1763116252104,-522.92159442,0.00023068,2]
[393940072,1763116252113,-1500.0,0.00023068,2]
[393940073,1763116252124,-808.17285807,0.00023068,2]
[393940074,1763116252134,-1515.18360682,0.00023068,2]
[393940075,1763116252143,-1500.0,0.00023068,2]
[393940076,1763116252153,-455.04910008,0.00023068,2]
[393940077,1763116252163,-1027.37996962,0.00023068,2]
[393940078,1763116252173,-460.0,0.00023124,2]
[393940079,1763116252183,-2500.0,0.00023164,2]
[393940080,1763116252192,-1713.236384,0.00023164,2]
[393940081,1763116252202,-2500.0,0.00023164,2]
[393940082,1763116252211,-2500.0,0.00023164,2]
[393940083,1763116252221,-2500.0,0.00023164,2]
[393940084,1763116252231,-2500.0,0.00023164,2]
[393940085,1763116252240,-2500.0,0.00023164,2]
[393940086,1763116252250,-246.76631475,0.00023255,2]
[393940087,1763116252260,-973.24878984,0.00023521,2]
[393940088,1763116252270,-1134.39132201,0.00023521,2]
[393940089,1763116252280,-717.01273791,0.00023521,2]
[393940090,1763116252290,-1000.0,0.00023521,2]
[393940091,1763116252299,-692.35024442,0.00023521,2]
[393940092,1763116252308,-1000.0,0.00023521,2]
[393940093,1763116252319,-317.70323756,0.00023521,2]
[393940094,1763116252328,-1000.0,0.00023521,2]
[393940095,1763116252338,-663.05349914,0.00023564,2]
[393940096,1763116252349,-500.0,0.00023616,2]
[393940097,1763116252359,-2000.0,0.00023616,2]
[393940098,1763116252368,-500.0,0.00023616,2]
[393940099,1763116252377,-2000.0,0.00023616,2]
[393940100,1763116252387,-1000.00556577,0.00023616,2]
[393940101,1763116252395,-2000.0,0.00023616,2]
[393940102,1763116252405,-1010.7455614,0.00023616,2]
[393940103,1763116252414,-1012.19074474,0.00023616,2]
[393940104,1763116252424,-560.0,0.00023672,2]
[393940105,1763116252435,-587.0,0.00023712,2]
[393940106,1763116252445,-3000.0,0.00023712,2]
[393940107,1763116252454,-3000.0,0.00023712,2]
[393940108,1763116252463,-2082.26884545,0.00023712,2]
[393940109,1763116252472,-3000.0,0.00023712,2]
[393940110,1763116252482,-722.10731625,0.00023712,2]
[393940111,1763116252491,-221.156831,0.00023712,2]
[393940112,1763116252500,-311.04757964,0.00023728,3]
[393940113,1763116252510,-707.88676373,0.0002376,2]
[393940114,1763116252518,-435.56880206,0.00023768,3]
[393940115,1763116252527,-268.28142508,0.0002385,2]
[393940116,1763116252536,-707.88676373,0.00023857,2]
[393940117,1763116252546,-151.0,0.000239,8]
[393940118,1763116252555,-2351.0,0.00023941,2]
[393940119,1763116252564,-707.88676373,0.00023954,2]
[393940120,1763116252573,-707.88676373,0.00024051,2]
[393940121,1763116252584,-1500.0,0.00024068,2]
[393940122,1763116252592,-1184.92834815,0.00024068,2]
[393940123,1763116252602,-15881.05337048,0.00024069,2]
[393940124,1763116252611,-19774.79740838,0.00024142,2]
[393940125,1763116252620,-708.59465049,0.00024148,2]
[393940126,1763116252630,-2500.0,0.00024164,2]
[393940127,1763116252639,-2500.0,0.00024164,2]
[393940128,1763116252649,-660.0,0.0002422,2]
[393940129,1763116252659,-1500.0,0.0002426,2]
[393940130,1763116252668,-3500.0,0.0002426,2]
[393940131,1763116252678,-3500.0,0.0002426,2]
[393940132,1763116252687,-1477.90879844,0.00024616,2]
[393940133,1763116252696,-31220.48132109,0.0002465,2]
[393940134,1763116252705,-151.0,0.00024658,7]
[393940135,1763116252714,-200.0,0.00024658,15]
[393940136,1763116252723,-195.353028,0.00024658,7]